bitfinex/quotes_SOLUSD_20250129
["timestamp","ask_amount","ask_price","bid_price","bid_amount"]
[1738176115611,12.50307112,229.91,229.85,0.65249916]
[1738176115784,12.50307112,229.92,229.85,0.65249916]
[1738176115982,14.24277112,229.92,229.85,0.65249916]
[1738176116182,1.7397,229.92,229.85,5.00299916]
[1738176116572,14.24277112,229.92,229.85,5.00299916]
[1738176116891,12.50307112,229.91,229.85,0.65249916]
[1738176117505,1.7397,229.92,229.81,30.31398]
[1738176117506,12.50307112,229.88,229.82,3.69250341]
[1738176117909,12.50307112,229.89,229.83,23.776884]
[1738176118109,12.50307112,229.9,229.84,0.65251475]
[1738176118285,12.50307112,229.92,229.84,0.65251475]
[1738176118599,12.50307112,229.93,229.84,0.65251475]
[1738176119604,14.24277112,229.93,229.85,4.3506]
[1738176119785,14.24277112,229.93,229.86,0.65244288]
[1738176121187,20.0,229.92,229.87,23.776884]
[1738176121381,20.0,229.92,229.88,0.65239769]
[1738176123908,12.50307112,229.95,229.89,23.776884]
[1738176124206,0.03,229.97,229.89,23.776884]
[1738176124207,12.53307112,229.97,229.9,0.65236278]
[1738176124410,1.7693,229.97,229.9,0.65236278]
[1738176124925,0.03,229.97,229.91,23.776884]
[1738176125211,0.03,229.97,229.94,0.25098]
[1738176125388,0.03,229.97,229.95,0.65218348]
[1738176125582,0.03,229.97,229.96,23.776884]
[1738176126219,0.03,229.97,229.95,0.65218348]
[1738176127115,0.03,229.97,229.94,3.69221105]
[1738176127415,0.03,229.97,229.95,0.65227857]
[1738176128321,0.03,229.97,229.94,3.69220858]
[1738176128522,12.50307112,229.95,229.89,3.04]
[1738176128818,12.50307112,229.93,229.85,1.5309]
[1738176129006,0.03,229.97,229.83,40.4126]
[1738176129007,12.50307112,229.87,229.83,6.0618]
[1738176129187,12.50307112,229.85,229.81,0.063]
[1738176129392,12.50307112,229.83,229.81,0.063]
[1738176130688,20.0,229.83,229.81,0.063]
[1738176130884,12.50307112,229.82,229.81,0.063]
[1738176131084,26.74654224,229.82,229.81,0.063]
[1738176131392,14.24347112,229.82,229.81,0.063]
[1738176135226,14.24347112,229.82,229.76,0.063]
[1738176135227,20.0,229.78,229.76,0.063]
[1738176135390,12.50307112,229.77,229.76,0.063]
[1738176136922,14.24387112,229.77,229.76,0.063]
[1738176137738,21.12549,229.75,229.74,0.0001]
[1738176137893,34.00503112,229.75,229.74,0.0001]
[1738176138093,12.50307112,229.64,229.63,0.063]
[1738176139203,14.24487112,229.64,229.63,0.063]
[1738176140830,15.37030212,229.64,229.63,0.063]
[1738176141603,14.24487112,229.64,229.63,0.063]
[1738176144302,15.37030212,229.64,229.63,0.063]
[1738176144618,14.37036112,229.64,229.63,0.063]
[1738176144832,14.24487112,229.64,229.63,0.063]
[1738176148208,14.37036112,229.64,229.63,0.063]
[1738176148610,14.24487112,229.64,229.63,0.063]
[1738176150436,14.37036112,229.64,229.63,0.063]
[1738176152546,14.24487112,229.64,229.63,0.063]
[1738176155750,12.50307112,229.65,229.63,0.063]
[1738176155941,14.24477112,229.65,229.63,0.063]
[1738176156642,12.50307112,229.64,229.63,0.063]
[1738176158167,14.24487112,229.64,229.63,0.063]
[1738176163739,14.24487112,229.65,229.63,0.063]
[1738176164136,20.0,229.64,229.63,0.063]
[1738176164332,12.50307112,229.69,229.63,0.063]
[1738176164528,1.7415,229.68,229.63,0.063]
[1738176165128,20.0,229.66,229.63,0.063]
[1738176166442,12.50307112,229.67,229.63,0.063]
[1738176166761,12.50307112,229.73,229.64,0.37647]
[1738176166958,0.03,229.74,229.66,24.278844]
[1738176167125,0.03,229.74,229.68,23.776884]
[1738176167324,21.7711,229.74,229.67,0.6529569]
[1738176167526,20.03,229.74,229.68,24.153354]
[1738176167746,0.03,229.74,229.71,23.776884]
[1738176167935,0.03,229.74,229.73,23.776884]
[1738176168361,0.03,229.74,229.72,2.23638145]
[1738176168668,0.03,229.74,229.72,1.5835]
[1738176170635,12.50307112,229.73,229.7,6.6499]
[1738176171034,12.50307112,229.73,229.66,2.27881725]
[1738176171558,12.50307112,229.71,229.66,1.6258]
[1738176171768,0.03,229.74,229.65,6.6485]
[1738176171769,12.50307112,229.67,229.65,6.6485]
[1738176171942,12.50307112,229.66,229.64,3.04]
[1738176172533,12.50307112,229.67,229.64,3.04]
[1738176172749,14.24467112,229.67,229.64,3.04]
[1738176173334,12.50307112,229.65,229.64,3.04]
[1738176174259,12.50307112,229.66,229.64,3.04]
[1738176175145,1.7417,229.65,229.64,3.04]
[1738176175561,12.50307112,229.68,229.64,3.04]
[1738176175770,12.50307112,229.73,229.65,0.65311692]
[1738176176265,16.88587112,229.74,229.65,0.65311692]
[1738176176568,12.53307112,229.74,229.65,0.65311692]
[1738176176759,1.7411,229.73,229.65,0.65311692]
[1738176176944,14.24417112,229.73,229.65,0.65311692]
[1738176177150,1.7411,229.73,229.65,0.65311692]
[1738176177861,1.7411,229.73,229.66,23.776884]
[1738176178183,1.7411,229.73,229.67,0.65297473]
[1738176178362,1.7411,229.73,229.66,23.776884]
[1738176178661,1.7411,229.73,229.67,0.65303325]
[1738176179058,1.7411,229.73,229.65,312.0]
[1738176179244,14.24417112,229.73,229.65,312.0]
[1738176179873,12.50307112,229.72,229.65,312.0]
[1738176180073,12.50307112,229.72,229.66,0.65306103]
[1738176180366,12.50307112,229.72,229.65,312.0]
[1738176180545,12.50307112,229.72,229.63,23.839884]
[1738176180546,12.50307112,229.69,229.63,3.103]
[1738176180751,12.50307112,229.67,229.63,0.063]
[1738176180973,12.50307112,229.64,229.63,0.063]
[1738176181854,14.24487112,229.64,229.63,0.063]
[1738176184372,1.7418,229.64,229.63,0.063]
[1738176184584,14.24487112,229.64,229.63,0.063]
[1738176185474,1.7418,229.64,229.63,0.063]
[1738176186578,12.50307112,229.67,229.63,0.063]
[1738176186879,1.7414,229.7,229.63,0.71618263]
[1738176187362,20.0,229.68,229.63,0.71618263]
[1738176187973,12.50307112,229.73,229.64,6.4197]
[1738176188221,12.50307112,229.71,229.64,6.4197]
[1738176188385,12.50307112,229.69,229.64,6.4197]
[1738176188553,12.50307112,229.67,229.63,0.063]
[1738176189757,12.50307112,229.65,229.63,0.063]
[1738176190081,12.50307112,229.67,229.63,0.063]
[1738176190874,1.7417,229.66,229.63,0.063]
[1738176192983,12.50307112,229.67,229.63,0.063]
[1738176192984,0.03,229.74,229.67,0.50196]
[1738176193169,0.03,229.74,229.69,23.776884]
[1738176193371,0.03,229.74,229.71,23.776884]
[1738176193563,0.03,229.74,229.72,0.6528223]
[1738176195489,0.03,229.74,229.72,30.6528223]
[1738176195980,0.03,229.74,229.73,24.278844]
[1738176196382,0.03,229.74,229.73,30.380444]
[1738176196569,0.03,229.74,229.73,60.380444]
[1738176198178,0.03,229.77,229.76,23.776884]
[1738176198473,0.03,229.77,229.76,54.42953664]
[1738176199491,0.03,229.77,229.76,366.42953664]
[1738176199695,0.03,229.77,229.76,365.776884]
[1738176200283,0.03,229.77,229.76,30.0]
[1738176200678,0.03,229.77,229.73,6.1016]
[1738176201299,1.7708,229.77,229.73,6.1016]
[1738176203305,1.7708,229.77,229.7,312.0]
[1738176203488,12.50307112,229.76,229.69,5.07656]
[1738176203689,12.50307112,229.76,229.72,0.063]
[1738176204999,1.741,229.75,229.72,0.063]
[1738176208599,32.50307112,229.73,229.61,6.187]
[1738176208899,12.50307112,229.68,229.61,6.84010638]
[1738176210580,1.7416,229.67,229.61,0.71610638]
[1738176211286,1.7416,229.67,229.61,0.063]
[1738176211492,1.7416,229.67,229.61,0.7161599]
[1738176212205,20.0,229.67,229.63,0.71616198]
[1738176212588,20.0,229.67,229.63,0.063]
[1738176213220,12.50307112,229.68,229.63,0.063]
[1738176213513,1.7413,229.71,229.64,23.776884]
[1738176213690,1.7413,229.71,229.65,0.65308019]
[1738176214306,1.7412,229.72,229.66,23.776884]
[1738176214613,1.7411,229.73,229.67,0.65297828]
[1738176214809,12.50307112,229.68,229.63,0.063]
[1738176215104,12.50307112,229.65,229.63,0.063]
[1738176215889,1.7418,229.64,229.63,0.063]
[1738176217611,4.3541,229.67,229.63,0.063]
[1738176217612,12.50307112,229.67,229.63,0.063]
[1738176217810,20.0,229.66,229.63,0.063]
[1738176218019,4.3533,229.71,229.64,23.776884]
[1738176218020,1.7414,229.7,229.64,23.776884]
[1738176218315,0.03,229.74,229.65,0.65304211]
[1738176218316,1.7412,229.72,229.65,0.65304211]
[1738176219409,1.7412,229.72,229.66,23.776884]
[1738176219619,1.7412,229.72,229.67,0.65298904]
[1738176220693,0.03,229.74,229.67,0.65298904]
[1738176220898,1.771,229.74,229.67,0.65298904]
[1738176221098,1.771,229.74,229.66,24.42988021]
[1738176221919,12.50307112,229.73,229.66,24.42988021]
[1738176223026,0.03,229.74,229.67,23.776884]
[1738176223209,0.03,229.74,229.69,23.776884]
[1738176223408,0.03,229.74,229.7,0.6528915]
[1738176224294,12.50307112,229.73,229.7,312.6528915]
[1738176224495,12.50307112,229.71,229.62,12.5935]
[1738176224740,12.50307112,229.71,229.64,24.278844]
[1738176224905,12.50307112,229.73,229.66,23.776884]
[1738176225227,12.50307112,229.73,229.67,0.65299133]
[1738176225429,1.7412,229.72,229.67,0.65299133]
[1738176226332,1.7412,229.72,229.66,24.42987538]
[1738176227216,1.7712,229.72,229.66,24.42987538]
[1738176227419,1.7712,229.72,229.67,0.6530036]
[1738176229841,0.03,229.72,229.68,23.776884]
[1738176230036,0.03,229.72,229.69,0.65289125]
[1738176230415,0.03,229.72,229.68,23.776884]
[1738176230737,0.03,229.72,229.67,0.50196]
[1738176230913,0.03,229.72,229.68,0.65298313]
[1738176231314,0.03,229.72,229.66,0.65298228]
[1738176232321,0.03,229.72,229.64,24.278844]
[1738176232635,0.03,229.72,229.65,0.65302393]
[1738176236231,0.03,229.72,229.66,23.776884]
[1738176236424,0.03,229.72,229.67,0.65302856]
[1738176238545,12.50307112,229.71,229.64,0.50196]
[1738176238754,12.50307112,229.71,229.65,0.653079]
[1738176238915,12.50307112,229.71,229.64,0.65307771]
[1738176240241,0.03,229.72,229.65,0.50196]
[1738176240415,0.03,229.72,229.66,0.65298525]
[1738176241444,12.50307112,229.71,229.66,312.0]
[1738176241760,12.50307112,229.71,229.63,23.839884]
[1738176241921,12.50307112,229.71,229.64,0.65310976]
[1738176242118,0.03,229.72,229.64,0.65310976]
[1738176242119,12.50307112,229.67,229.64,0.65310976]
[1738176242439,1.7418,229.64,229.63,0.063]
[1738176242646,12.50307112,229.67,229.63,0.063]
[1738176242944,1.7417,229.66,229.63,0.063]
[1738176245148,0.03,229.72,229.64,23.776884]
[1738176245346,0.03,229.72,229.66,23.776884]
[1738176245659,20.03,229.72,229.67,0.65298502]
[1738176245833,20.03,229.72,229.64,0.50196]
[1738176245834,20.03,229.72,229.64,1.15495771]
[1738176246150,0.03,229.72,229.65,23.776884]
[1738176246458,0.03,229.72,229.66,0.65298755]
[1738176246828,0.03,229.72,229.66,5.00708755]
[1738176248274,0.03,229.72,229.67,23.776884]
[1738176248440,0.03,229.72,229.68,0.65296346]
[1738176250062,0.03,229.72,229.69,23.776884]
[1738176250356,0.03,229.72,229.67,0.063]
[1738176250554,12.50307112,229.71,229.67,0.063]
[1738176250761,12.50307112,229.69,229.67,0.063]
[1738176251953,1.7415,229.68,229.67,0.063]
[1738176252153,14.24447112,229.69,229.67,0.063]
[1738176252354,14.24437112,229.71,229.67,0.063]
[1738176252860,12.50307112,229.69,229.67,0.063]
[1738176254563,1.7415,229.68,229.67,0.063]
[1738176255657,14.24457112,229.68,229.67,0.063]
[1738176256330,26.74764224,229.68,229.67,0.063]
[1738176256535,14.24457112,229.68,229.67,0.063]
[1738176257453,1.7415,229.68,229.67,0.063]
[1738176257761,21.7415,229.68,229.67,0.063]
[1738176257957,14.24447112,229.7,229.67,0.063]
[1738176258281,1.7414,229.7,229.67,0.063]
[1738176258658,1.7415,229.68,229.67,0.063]
[1738176259366,1.7414,229.69,229.67,0.063]
[1738176261069,12.53307112,229.72,229.67,0.063]
[1738176261384,0.03,229.72,229.68,24.278844]
[1738176261559,0.03,229.72,229.68,24.93190139]
[1738176261885,0.03,229.72,229.71,0.50196]
[1738176262056,0.03,229.72,229.71,1.15480424]
[1738176262453,0.03,229.72,229.71,0.65284424]
[1738176262874,0.03,229.72,229.7,0.65288406]
[1738176263087,0.03,229.72,229.69,3.04]
[1738176263308,0.03,229.72,229.67,24.341844]
[1738176263473,0.03,229.72,229.68,0.65299449]
[1738176263785,0.03,229.72,229.67,0.063]
[1738176264084,12.50307112,229.7,229.67,0.063]
[1738176265081,1.7414,229.69,229.67,0.063]
[1738176270403,12.50307112,229.68,229.67,0.063]
[1738176271494,14.24457112,229.68,229.67,0.063]
[1738176275093,26.74764224,229.68,229.66,0.063]
[1738176275278,12.50307112,229.67,229.66,0.063]
[1738176276489,20.0,229.64,229.63,0.063]
[1738176276682,32.50307112,229.64,229.63,0.063]
[1738176277272,34.24487112,229.64,229.63,0.063]
[1738176279166,1.7418,229.64,229.63,0.063]
[1738176279382,21.7418,229.64,229.63,0.063]
[1738176279893,1.7418,229.64,229.63,0.063]
[1738176281391,14.24487112,229.64,229.63,0.063]
[1738176282692,15.98763712,229.64,229.63,0.063]
[1738176289408,15.98763712,229.64,229.63,0.0001]
[1738176296716,11.50211715,229.64,229.63,0.0001]
[1738176297924,9.75935115,229.64,229.63,0.0001]
[1738176300609,8.01755115,229.68,229.63,0.0001]
[1738176300847,0.03,229.72,229.63,312.0001]
[1738176301018,0.03,229.72,229.64,23.776884]
[1738176301200,0.03,229.72,229.66,23.776884]
[1738176301399,0.03,229.72,229.68,23.776884]
[1738176301627,0.03,229.72,229.69,0.6529294]
[1738176301813,0.03,229.72,229.7,23.776884]
[1738176302001,0.03,229.72,229.71,24.68074451]
[1738176302504,0.03,229.72,229.71,24.42976451]
[1738176302697,0.03,229.72,229.71,0.65288051]
[1738176302892,0.03,229.72,229.67,7.6929]
[1738176303118,12.50520034,229.71,229.67,7.6929]
[1738176303832,12.50520034,229.69,229.67,7.6929]
[1738176304126,12.50520034,229.69,229.62,3.04]
[1738176304320,0.03,229.72,229.62,3.04]
[1738176304321,12.50520034,229.64,229.62,3.04]
[1738176304818,14.24700034,229.64,229.63,0.93077266]
[1738176305018,14.24700034,229.64,229.62,3.04]
[1738176305208,14.24700034,229.64,229.63,0.17175648]
[1738176305411,14.24700034,229.64,229.62,3.04]
[1738176305720,14.24700034,229.64,229.62,3.08207689]
[1738176306145,14.24700034,229.64,229.62,3.07249472]
[1738176306308,14.24700034,229.64,229.62,3.04]
[1738176306625,12.50520034,229.68,229.62,3.04]
[1738176306798,12.50520034,229.68,229.62,3.69313961]
[1738176307000,20.0,229.65,229.62,3.69313961]
[1738176307620,20.0,229.65,229.62,3.04]
[1738176307922,20.0,229.65,229.62,3.103]
[1738176308930,12.50520034,229.64,229.62,3.103]
[1738176310400,1.7419,229.63,229.62,3.103]
[1738176311928,20.0,229.63,229.62,3.103]
[1738176313629,20.0,229.65,229.62,3.103]
[1738176314227,0.03,229.66,229.62,3.103]
[1738176315318,12.50520034,229.65,229.62,3.103]
[1738176315624,12.50520034,229.64,229.62,3.103]
[1738176317117,12.50520034,229.63,229.62,3.103]
[1738176317317,12.50520034,229.63,229.62,0.063]
[1738176317731,12.50520034,229.64,229.62,0.063]
[1738176318036,0.03,229.66,229.62,0.8417244]
[1738176318731,0.03,229.66,229.64,0.12549]
[1738176318906,0.03,229.66,229.65,0.65307294]
[1738176319112,0.03,229.66,229.64,0.65308831]
[1738176320028,0.03,229.66,229.65,24.278844]
[1738176320238,0.03,229.66,229.65,336.93193363]
[1738176320414,0.03,229.66,229.65,336.278844]
[1738176320821,0.03,229.66,229.65,24.278844]
[1738176321022,0.03,229.66,229.65,24.93176126]
[1738176321439,0.03,229.66,229.65,29.28616126]
[1738176321634,0.03,229.66,229.65,30.28616126]
[1738176321932,0.03,229.72,229.7,24.278844]
[1738176322135,0.03,229.72,229.71,24.93164066]
[1738176322542,0.03,229.72,229.71,24.68066066]
[1738176322921,0.03,229.72,229.71,24.027864]
[1738176323239,0.03,229.72,229.71,23.776884]
[1738176326759,0.03,229.72,229.7,3.04]
[1738176327220,12.53520034,229.72,229.7,3.04]
[1738176327541,0.7934168,229.71,229.63,0.71604508]
[1738176327852,12.50520034,229.67,229.63,0.71604508]
[1738176328147,12.50520034,229.67,229.65,0.12549]
[1738176328315,12.50520034,229.69,229.65,0.25098]
[1738176328516,12.50520034,229.69,229.68,0.12549]
[1738176329523,12.50520034,229.69,229.65,24.027864]
[1738176329838,14.24660034,229.69,229.65,23.902374]
[1738176330031,12.50520034,229.67,229.65,0.12549]
[1738176330244,12.50520034,229.67,229.63,0.063]
[1738176330613,12.50520034,229.69,229.64,0.65315606]
[1738176330916,14.24650034,229.71,229.65,24.027864]
[1738176331113,14.24650034,229.71,229.67,23.902374]
[1738176331313,14.24650034,229.71,229.67,0.12549]
[1738176331553,0.7934168,229.7,229.67,0.12549]
[1738176332437,1.7414,229.7,229.67,0.12549]
[1738176334432,12.50520034,229.69,229.65,0.65308572]
[1738176335777,12.50520034,229.69,229.65,24.027864]
[1738176336465,12.50520034,229.67,229.63,0.063]
[1738176336771,8.01272849,229.65,229.63,0.063]
[1738176336940,0.7934168,229.64,229.63,0.063]
[1738176337840,8.01272849,229.65,229.63,0.063]
[1738176338180,9.75442849,229.65,229.63,0.063]
[1738176338759,12.52065495,229.64,229.63,0.063]
[1738176339864,14.26245495,229.64,229.63,0.063]
[1738176344474,12.52065495,229.66,229.63,0.063]
[1738176344769,12.52065495,229.66,229.63,0.18849]
[1738176344943,1.7416,229.67,229.63,0.18849]
[1738176345374,12.52065495,229.68,229.63,0.18849]
[1738176345893,14.26215495,229.68,229.63,0.18849]
[1738176346055,1.7415,229.69,229.65,0.12549]
[1738176346440,0.03,229.71,229.67,0.25098]
[1738176346789,0.03,229.71,229.69,0.12549]
[1738176347572,0.03,229.71,229.69,312.12549]
[1738176348071,0.03,229.71,229.67,0.12549]
[1738176348256,0.03,229.71,229.68,0.65297093]
[1738176350194,0.03,229.71,229.68,23.902374]
[1738176350356,0.03,229.71,229.68,0.12549]
[1738176350559,12.52065495,229.7,229.63,0.71601261]
[1738176350857,12.52065495,229.67,229.63,0.063]
[1738176351183,12.52065495,229.67,229.63,0.18849]
[1738176351555,12.52065495,229.69,229.64,24.80650911]
[1738176351759,12.55065495,229.71,229.64,24.80650911]
[1738176352396,0.03,229.71,229.66,24.153354]
[1738176352558,0.03,229.71,229.67,0.65298109]
[1738176353153,0.03,229.71,229.68,24.027864]
[1738176353487,0.03,229.71,229.69,0.65298301]
[1738176353794,0.03,229.71,229.7,24.278844]
[1738176353960,0.03,229.71,229.7,366.278844]
[1738176354161,0.03,229.71,229.7,367.278844]
[1738176354686,0.03,229.71,229.7,371.632344]
[1738176354979,0.03,229.71,229.7,59.632344]
[1738176355187,0.03,229.71,229.7,60.2850175]
[1738176357587,0.03,229.72,229.71,29.632144]
[1738176357784,0.03,229.77,229.73,52.50196]
[1738176357990,0.03,229.77,229.73,81.51837244]
[1738176359287,0.03,229.77,229.73,85.87127244]
[1738176360987,0.03,229.77,229.76,56.278844]
[1738176361204,0.03,229.77,229.76,4.06895094]
[1738176361494,0.03,229.77,229.76,0.90346094]
[1738176361672,0.03,229.77,229.76,0.25098]
[1738176361874,0.03,229.77,229.76,24.027864]
[1738176363995,12.55065495,229.77,229.72,0.65279755]
[1738176364295,12.55065495,229.77,229.64,36.6188]
[1738176364296,12.52065495,229.74,229.64,36.6188]
[1738176364469,12.52065495,229.69,229.65,0.65299847]
[1738176364666,0.03,229.77,229.63,0.063]
[1738176364667,12.52065495,229.66,229.63,0.063]
[1738176364868,12.52065495,229.67,229.63,0.71613452]
[1738176365374,12.52065495,229.71,229.63,0.71613452]
[1738176365602,12.52065495,229.71,229.64,0.25098]
[1738176365792,12.52065495,229.68,229.65,0.12549]
[1738176365976,12.52065495,229.66,229.63,0.063]
[1738176366382,14.26225495,229.67,229.63,0.18849]
[1738176366580,14.26225495,229.67,229.63,0.063]
[1738176366980,12.52065495,229.67,229.63,0.063]
[1738176367495,12.55065495,229.68,229.63,0.063]
[1738176367701,0.03,229.68,229.65,0.12549]
[1738176368069,0.03,229.68,229.65,24.027864]
[1738176368266,0.03,229.68,229.67,23.902374]
[1738176369800,0.03,229.68,229.67,24.278844]
[1738176370698,0.03,229.68,229.67,24.027864]
[1738176372193,0.03,229.68,229.67,0.12549]
[1738176372385,0.03,229.68,229.63,0.71601081]
[1738176372587,12.52065495,229.67,229.63,0.063]
[1738176373405,12.52065495,229.67,229.63,0.18849]
[1738176374108,14.26225495,229.67,229.63,0.18849]
[1738176375407,0.03,229.68,229.63,0.18849]
[1738176376183,12.52065495,229.67,229.63,0.18849]
[1738176376501,12.52065495,229.64,229.63,0.063]
[1738176377372,14.26245495,229.64,229.63,0.063]
[1738176378500,12.52065495,229.67,229.63,0.18849]
[1738176378670,13.34407175,229.68,229.63,0.18849]
[1738176378876,0.03,229.68,229.63,23.965374]
[1738176379090,0.03,229.68,229.65,0.12549]
[1738176379508,0.03,229.68,229.65,23.902374]
[1738176380208,0.03,229.68,229.63,0.063]
[1738176380209,12.52065495,229.66,229.63,0.063]
[1738176380386,12.52065495,229.64,229.63,0.063]
[1738176381891,14.26245495,229.64,229.63,0.063]
[1738176388291,14.26245495,229.64,229.62,0.063]
[1738176388605,13.31407175,229.63,229.62,0.063]
[1738176388810,12.52065495,229.65,229.62,0.18849]
[1738176388983,15.05577175,229.66,229.62,0.063]
[1738176389305,12.52065495,229.63,229.62,0.063]
[1738176390384,14.26255495,229.63,229.62,0.063]
[1738176390584,15.05597175,229.63,229.62,0.0001]
[1738176393791,15.05597175,229.63,229.61,0.0001]
[1738176393989,0.12549,229.56,229.49,0.063]
[1738176394217,0.999941,229.57,229.49,0.063]
[1738176394218,12.52065495,229.5,229.49,0.063]
[1738176395315,14.26355495,229.5,229.49,0.063]
[1738176398197,17.48664415,229.5,229.49,0.063]
[1738176399922,3.2230892,229.5,229.49,0.18849]
[1738176401400,0.7934168,229.54,229.49,0.18849]
[1738176401598,4.3556,229.59,229.49,0.18849]
[1738176401599,1.7423,229.57,229.5,0.37647]
[1738176401925,0.7934168,229.61,229.52,0.37647]
[1738176402217,12.52065495,229.57,229.54,0.12549]
[1738176402519,0.7934168,229.56,229.51,1.504]
[1738176402716,0.7934168,229.56,229.51,0.12549]
[1738176402919,12.52065495,229.55,229.51,0.12549]
[1738176403299,12.52065495,229.55,229.54,0.063]
[1738176403905,14.26315495,229.55,229.54,0.063]
[1738176404318,1.7425,229.55,229.54,0.063]
[1738176404529,14.26305495,229.57,229.54,0.063]
[1738176404911,1.7421,229.6,229.54,0.063]
[1738176405107,1.7421,229.6,229.55,0.12549]
[1738176406029,3.22451236,229.59,229.55,0.12549]
[1738176407223,17.48736731,229.59,229.55,0.12549]
[1738176407417,18.28078411,229.59,229.55,0.12549]
[1738176407921,3.22451236,229.58,229.55,0.12549]
[1738176408219,3.22451236,229.58,229.54,0.063]
[1738176408433,13.31407175,229.57,229.54,0.063]
[1738176408727,12.52065495,229.55,229.54,0.063]
[1738176409221,3.22451236,229.58,229.54,0.063]
[1738176409423,3.22451236,229.56,229.55,24.027864]
[1738176409625,3.22451236,229.56,229.55,24.278844]
[1738176409838,3.22451236,229.56,229.55,25.898244]
[1738176410437,3.22451236,229.56,229.55,342.254544]
[1738176410636,3.22451236,229.56,229.55,372.254544]
[1738176410936,3.22451236,229.62,229.58,0.12549]
[1738176411118,3.22451236,229.62,229.61,0.12549]
[1738176411311,3.22451236,229.62,229.61,0.77870034]
[1738176411842,3.22451236,229.62,229.61,24.68107434]
[1738176412141,3.22451236,229.62,229.61,24.93205434]
[1738176412349,0.03,229.63,229.62,24.153354]
[1738176412515,0.03,229.63,229.62,0.12549]
[1738176412715,0.03,229.63,229.56,0.65324832]
[1738176412931,0.03,229.63,229.57,24.278844]
[1738176413135,0.03,229.63,229.6,0.12549]
[1738176413939,0.03,229.63,229.62,24.153354]
[1738176414345,0.03,229.63,229.62,28.633844]
[1738176415324,0.03,229.63,229.62,340.633844]
[1738176415833,0.03,229.63,229.62,0.12549]
[1738176416144,0.03,229.63,229.55,8.67092755]
[1738176416145,12.55065495,229.63,229.55,8.67092755]
[1738176416450,12.52065495,229.6,229.55,8.0177]
[1738176416745,0.7934168,229.62,229.56,23.902374]
[1738176416746,12.52065495,229.58,229.56,23.902374]
[1738176417042,1.7422,229.59,229.56,0.12549]
[1738176417225,12.52065495,229.58,229.55,0.063]
[1738176417619,12.52065495,229.56,229.55,0.063]
[1738176418550,20.04618594,229.57,229.55,0.063]
[1738176418747,20.83960274,229.56,229.55,0.063]
[1738176419443,22.58200274,229.56,229.55,0.063]
[1738176420446,20.83960274,229.56,229.55,0.063]
[1738176420754,20.04618594,229.56,229.55,0.063]
[1738176421141,20.83960274,229.56,229.55,0.063]
[1738176421652,20.83960274,229.56,229.55,0.0001]
[1738176424049,0.7934168,229.56,229.55,0.0001]
[1738176424231,20.83960274,229.56,229.55,0.0001]
[1738176425049,22.58200274,229.56,229.55,0.0001]
[1738176425441,22.58200274,229.56,229.54,0.0001]
[1738176425638,40.04618594,229.55,229.54,0.0001]
[1738176426034,41.78868594,229.55,229.54,0.0001]
[1738176426435,42.58210274,229.55,229.54,0.0001]
[1738176438538,21.78848594,229.57,229.54,0.0001]
[1738176438750,1.7423,229.58,229.54,0.0001]
[1738176438942,2.5357168,229.58,229.54,0.0001]
[1738176439153,1.7423,229.58,229.54,0.0001]
[1738176439361,0.03,229.56,229.54,0.0001]
[1738176439737,0.03,229.56,229.55,23.902374]
[1738176440867,0.03,229.56,229.55,24.153354]
[1738176443549,0.03,229.56,229.54,0.0001]
[1738176444266,0.03,229.56,229.54,23.902474]
[1738176444453,0.03,229.56,229.55,0.77890444]